bitfinex/quotes_ETHUSD_20220310
["timestamp","ask_amount","ask_price","bid_price","bid_amount"]
[1646878652541,1.39650579,2668.8,2668.7,0.00331189]
[1646878652790,1.69650579,2668.8,2668.7,0.00331189]
[1646878652984,0.93794,2668.5,2668.3,0.00419568]
[1646878653184,0.445,2668.4,2668.3,0.00419568]
[1646878653587,3.945,2668.4,2668.3,0.00331238]
[1646878653783,3.945,2668.4,2668.2,0.00552081]
[1646878653784,3.2,2668.3,2668.2,0.00552081]
[1646878653984,0.93818,2667.9,2666.9,0.07777206]
[1646878654185,0.445,2667.8,2667.0,1.55446657]
[1646878654386,0.86546414,2667.6,2667.0,1.55446657]
[1646878654586,0.86546414,2667.6,2666.9,0.07777206]
[1646878654587,1.61046414,2667.6,2666.9,0.07777206]
[1646878654985,1.61046414,2667.6,2666.8,0.017501]
[1646878655187,0.93824,2667.5,2666.7,0.09221219]
[1646878655388,0.445,2667.4,2666.8,1.55458665]
[1646878655587,3.945,2667.4,2666.3,2.97971258]
[1646878655787,3.945,2667.4,2666.4,1.55462655]
[1646878655788,5.245,2667.4,2666.4,1.55462655]
[1646878656388,16.695,2667.4,2666.4,1.55462655]
[1646878656634,0.19512705,2667.3,2666.5,1.55462655]
[1646878656832,0.445,2667.2,2666.0,0.98749327]
[1646878657035,0.93843,2666.9,2666.1,1.55472655]
[1646878657236,5.22683,2666.9,2666.1,1.55472655]
[1646878657436,0.445,2666.8,2666.1,1.55472655]
[1646878657635,3.5,2666.7,2666.1,1.55472655]
[1646878657839,0.445,2666.6,2666.1,1.55472655]
[1646878658036,3.5,2666.5,2665.3,0.08770206]
[1646878658238,3.5,2666.5,2665.4,1.55513301]
[1646878658239,0.93883,2666.2,2665.4,1.55513301]
[1646878658439,3.945,2666.1,2665.4,1.55513301]
[1646878658841,4.945,2666.1,2664.9,0.05635599]
[1646878659037,4.945,2666.1,2665.0,1.57298859]
[1646878659238,4.945,2666.1,2664.9,0.05635599]
[1646878659239,0.93892,2665.9,2665.6,0.0063462]
[1646878659439,1.7,2665.7,2665.4,0.00482359]
[1646878659641,3.945,2665.6,2665.4,0.00482359]
[1646878659842,3.5,2665.5,2665.4,0.00482359]
[1646878660046,2.5,2665.4,2664.3,0.07454576]
[1646878660296,15.8494,2665.5,2663.8,0.67786173]
[1646878660297,6.93649491,2665.3,2663.8,0.67786173]
[1646878660498,3.645,2665.2,2663.7,0.00096]
[1646878660698,0.93935,2664.8,2663.7,1.55664759]
[1646878660898,0.02483798,2664.8,2663.9,2.7]
[1646878661098,5.3787,2664.9,2664.0,1.55568759]
[1646878661099,0.445,2664.7,2664.0,1.55568759]
[1646878661296,1.8787,2664.9,2663.7,0.00096]
[1646878661297,0.445,2664.6,2663.7,0.017501]
[1646878661503,0.445,2664.7,2663.8,1.55584747]
[1646878661700,0.93928,2664.5,2663.9,0.0853656]
[1646878661900,1.445,2665.0,2664.4,0.029168]
[1646878662098,1.445,2665.0,2664.5,0.027387]
[1646878662099,1.0,2664.6,2664.5,0.027387]
[1646878662298,0.3,2665.0,2664.5,0.027387]
[1646878662500,0.55913977,2665.3,2664.8,0.017979]
[1646878662501,0.85913977,2665.3,2664.8,0.017979]
[1646878662700,0.85913977,2665.3,2664.7,0.017894]
[1646878662901,0.93894,2665.1,2664.5,0.027387]
[1646878663104,0.93894,2665.1,2664.8,0.017758]
[1646878663301,0.93894,2665.1,2664.9,0.017979]
[1646878663509,0.93894,2665.1,2664.8,0.017501]
[1646878663702,0.93894,2665.1,2664.4,0.017501]
[1646878663901,0.93894,2665.1,2664.5,0.00558696]
[1646878664135,3.5,2665.0,2664.5,0.00558696]
[1646878664335,1.92104654,2664.9,2664.5,0.00558696]
[1646878664537,2.86742748,2664.7,2664.5,0.00558696]
[1646878664730,0.04209324,2664.5,2663.8,0.017501]
[1646878664936,0.04209324,2664.5,2663.9,0.017501]
[1646878665133,0.04209324,2664.5,2664.2,0.0042466]
[1646878665734,1.23931,2664.4,2664.2,0.0042466]
[1646878665934,1.23931,2664.4,2663.7,0.017501]
[1646878665935,0.93931,2664.4,2664.0,0.017501]
[1646878666136,1.87862,2664.5,2664.4,1.54989352]
[1646878666337,1.87862,2664.5,2664.4,1.63443067]
[1646878666741,1.87862,2664.5,2664.4,1.54989352]
[1646878666935,1.87862,2664.5,2664.4,1.56751752]
[1646878667136,0.93907,2664.6,2664.4,1.56915752]
[1646878667337,0.93907,2664.6,2664.5,0.0757366]
[1646878667538,1.87794,2664.9,2664.5,0.0757366]
[1646878667992,1.87794,2664.9,2664.7,0.017883]
[1646878669191,1.87794,2664.9,2664.5,0.0757366]
[1646878669395,2.17794,2664.9,2664.5,0.0757366]
[1646878669794,2.17794,2664.9,2664.5,0.08132356]
[1646878670693,2.17794,2664.9,2664.5,0.0757366]
[1646878671299,2.17794,2664.9,2664.5,3.5933136]
[1646878671300,0.93895,2664.8,2664.5,3.5933136]
[1646878671537,1.0,2665.0,2664.8,0.017979]
[1646878671742,3.87767,2665.3,2664.8,0.017979]
[1646878671945,13.093,2666.2,2665.2,0.029168]
[1646878671946,0.05239878,2666.0,2665.2,0.029168]
[1646878672143,4.14711968,2666.4,2665.7,0.017979]
[1646878672347,0.93847,2666.2,2665.7,0.017979]
[1646878672544,0.93847,2666.2,2665.6,0.017501]
[1646878672545,1.87713,2666.1,2665.6,0.017501]
[1646878672742,1.87713,2666.1,2665.9,0.01782]
[1646878672942,0.93847,2666.2,2665.9,0.017513]
[1646878673141,0.93847,2666.2,2665.6,0.017501]
[1646878673346,0.93847,2666.2,2665.8,0.017501]
[1646878673542,0.93847,2666.2,2665.9,0.017642]
[1646878673842,0.93847,2666.2,2665.6,0.02308576]
[1646878674044,0.93847,2666.2,2665.6,0.00558476]
[1646878674245,0.93847,2666.2,2665.6,0.017602]
[1646878674447,1.23847,2666.2,2665.6,0.017602]
[1646878674645,1.0,2666.1,2665.6,0.00558466]
[1646878674847,1.0,2666.1,2664.7,0.00089386]
[1646878674848,1.87749,2665.7,2664.7,0.00089386]
[1646878675050,0.9391,2665.5,2664.4,1.54989352]
[1646878675296,0.9391,2665.5,2664.4,0.41846755]
[1646878675297,11.26,2665.1,2664.4,0.41846755]
[1646878675500,11.56,2665.1,2663.6,0.00096]
[1646878675698,8.55449491,2664.6,2663.5,0.07883566]
[1646878675896,5.563,2664.2,2663.4,0.00096]
[1646878676094,6.94772,2664.1,2663.2,0.00096]
[1646878676291,6.94772,2664.1,2662.9,0.00096]
[1646878676292,0.04129451,2663.9,2662.9,0.00096]
[1646878676494,0.04129451,2663.9,2663.4,0.017979]
[1646878676495,0.445,2663.8,2663.4,0.017979]
[1646878676695,0.445,2663.8,2663.0,0.01771]
[1646878676696,0.445,2663.8,2663.0,0.017501]
[1646878676895,0.93935,2663.6,2663.4,0.017965]
[1646878677101,0.93935,2663.6,2663.5,0.020025]
[1646878677293,0.93935,2663.6,2663.5,0.02221]
[1646878678094,0.93919,2663.9,2663.5,0.02221]
[1646878678493,0.93919,2663.9,2663.8,0.029168]
[1646878679735,0.93919,2663.9,2663.7,0.017501]
[1646878679736,1.23919,2663.9,2663.7,0.017501]
[1646878679931,1.23919,2663.9,2663.8,0.019665]
[1646878680339,1.23919,2663.9,2663.7,0.017501]
[1646878680537,1.23919,2663.9,2663.8,0.017728]
[1646878680738,0.93956,2663.6,2663.5,0.017501]
[1646878680939,0.21895802,2663.7,2663.6,0.00441529]
[1646878681135,1.0,2664.0,2663.6,0.02214929]
[1646878681136,0.02884563,2664.0,2663.6,0.02214929]
[1646878681334,1.93931,2664.3,2663.8,0.017788]
[1646878681538,0.93931,2664.3,2663.8,0.017582]
[1646878681935,1.0,2664.2,2663.8,0.017582]
[1646878682136,0.93928,2664.1,2663.8,0.00441495]
[1646878682988,0.93928,2664.1,2663.9,0.017681]
[1646878683184,0.93928,2664.1,2664.0,0.019304]
[1646878684188,0.93928,2664.1,2663.8,0.017501]
[1646878684588,0.93928,2664.1,2663.8,0.00441495]
[1646878684790,1.23928,2664.1,2663.8,0.00441495]
[1646878685189,1.23928,2664.1,2663.8,0.02201195]
[1646878685390,1.23928,2664.1,2663.9,0.01763]
[1646878685590,1.23928,2664.1,2663.8,0.00441495]
[1646878685789,1.23928,2664.1,2663.7,0.00441512]
[1646878685988,1.23928,2664.1,2663.7,0.02201512]
[1646878686529,1.0,2664.0,2663.7,0.02201512]
[1646878686732,1.0,2664.0,2663.7,0.0176]
[1646878687138,3.5,2663.9,2663.6,0.0044152]
[1646878687337,1.3,2663.9,2663.6,0.0044152]
[1646878687539,0.93963,2663.8,2663.6,0.0044152]
[1646878687935,0.93963,2663.8,2663.5,0.00101926]
[1646878688337,0.93963,2663.8,2663.5,0.00543471]
[1646878688535,1.0,2663.9,2663.7,0.020747]
[1646878688736,1.87843,2664.3,2663.6,0.017501]
[1646878689140,2.17843,2664.3,2663.6,0.017501]
[1646878689540,0.9392,2664.0,2663.6,0.017501]
[1646878689741,1.2392,2664.0,2663.6,0.017501]
[1646878690147,1.2392,2664.0,2663.5,0.00543463]
[1646878690395,1.2392,2664.0,2663.5,0.00101926]
[1646878690595,1.0,2663.7,2663.5,0.02303363]
[1646878690793,1.2392,2664.0,2663.5,0.02303363]
[1646878691196,0.9392,2664.0,2663.5,0.02303363]
[1646878691400,3.07412799,2664.3,2663.9,0.029168]
[1646878691401,0.93913,2664.2,2663.9,0.029168]
[1646878691596,0.93913,2664.2,2664.1,0.017979]
[1646878691797,0.93913,2664.2,2663.5,0.00543471]
[1646878691798,0.3,2664.2,2663.5,0.00543471]
[1646878691998,0.3,2664.2,2663.5,0.02304071]
[1646878692197,1.13518799,2664.3,2663.7,0.017743]
[1646878692395,0.3,2664.2,2663.5,0.02293571]
[1646878692601,0.3,2664.2,2663.7,0.017549]
[1646878692602,1.87864,2664.0,2663.7,0.017549]
[1646878692995,1.87864,2664.0,2663.7,0.02196404]
[1646878693196,1.87864,2664.0,2663.9,0.017743]
[1646878693396,0.93931,2664.1,2663.9,0.017743]
[1646878693601,0.93931,2664.1,2664.0,0.022998]
[1646878694033,0.93931,2664.1,2663.9,0.017743]
[1646878694637,0.93931,2664.1,2663.7,0.00441504]
[1646878695238,0.93931,2664.1,2663.5,0.00101926]
[1646878695239,0.99247712,2664.1,2663.5,0.00101926]
[1646878695441,1.87915,2663.9,2663.6,0.0044152]
[1646878695638,1.87915,2663.9,2663.7,1.55653067]
[1646878695839,2.81877,2663.8,2663.7,1.55653067]
[1646878696237,3.81877,2663.8,2663.7,1.55653067]
[1646878696438,2.81877,2663.8,2663.7,1.55653067]
[1646878696639,3.81877,2663.8,2663.7,1.55653067]
[1646878696839,3.81877,2663.8,2663.5,0.00543471]
[1646878697138,3.81877,2663.8,2663.6,1.55653067]
[1646878697889,3.81877,2663.8,2663.7,1.55653067]
[1646878698488,3.81877,2663.8,2663.5,1.66283853]
[1646878698688,1.32850644,2663.8,2663.6,1.55653067]
[1646878699089,0.32850644,2663.8,2663.6,1.55653067]
[1646878700995,0.3,2663.8,2663.6,1.55653067]
[1646878701192,1.90785332,2664.0,2663.6,1.55653067]
[1646878701394,0.90785332,2664.0,2663.7,1.55653067]
[1646878701637,0.90785332,2664.0,2663.8,1.55653067]
[1646878701841,0.90785332,2664.0,2663.6,0.017501]
[1646878701842,2.81877,2663.8,2663.6,0.017501]
[1646878702044,2.81877,2663.8,2663.7,1.55639533]
[1646878702242,2.81877,2663.8,2663.5,1.55741459]
[1646878702243,4.11877,2663.8,2663.5,1.55741459]
[1646878702443,0.9072,2663.7,2663.5,1.55741459]
[1646878702644,0.9072,2663.7,2663.6,1.55639533]
[1646878702844,4.11877,2663.8,2663.6,1.55639533]
[1646878703043,4.11877,2663.8,2663.5,1.55741459]
[1646878703249,1.0,2663.7,2663.6,1.55639533]
[1646878703644,1.0,2663.7,2663.5,1.55741459]
[1646878703846,1.0,2663.7,2663.6,1.55639533]
[1646878704046,4.11877,2663.8,2663.6,0.017514]
[1646878704249,4.11877,2663.8,2663.7,1.57408233]
[1646878704645,4.11877,2663.8,2663.7,1.57485833]
[1646878705293,0.24671281,2664.3,2663.8,0.08108515]
[1646878705294,1.87851,2664.2,2663.8,0.08108515]
[1646878705494,0.19569799,2664.3,2664.1,0.029168]
[1646878705691,1.55382882,2664.8,2664.2,1.55639533]
[1646878705896,0.55382882,2664.8,2664.1,1.57389633]
[1646878706092,0.55382882,2664.8,2664.2,1.57406633]
[1646878706498,0.93928,2664.7,2664.3,1.55639533]
[1646878707292,0.93928,2664.7,2664.4,1.55639533]
[1646878707594,0.93928,2664.7,2664.2,0.00441421]
[1646878707595,2.92747714,2664.6,2664.2,0.00441421]
[1646878708395,4.22747714,2664.6,2663.8,0.017501]
[1646878708594,0.04377829,2664.5,2663.9,1.55620073]
[1646878708893,0.04377829,2664.5,2664.1,0.00441437]
[1646878709140,1.0,2664.2,2664.1,0.00441437]
[1646878709338,3.1789,2664.2,2664.1,0.00441437]
[1646878709739,4.1789,2664.2,2664.1,0.00441437]
[1646878709937,3.1789,2664.2,2663.5,0.09352856]
[1646878710140,3.1789,2664.2,2664.0,0.00441454]
[1646878710343,2.1789,2664.2,2664.0,0.00441454]
[1646878710545,1.3,2664.2,2664.0,0.00441454]
[1646878710846,1.0,2664.4,2664.1,0.017647]
[1646878711049,1.0,2664.4,2664.1,0.017539]
[1646878711448,1.0,2664.4,2664.3,0.021003]
[1646878712451,1.87833,2664.6,2664.1,0.00441446]
[1646878713389,2.17833,2664.6,2663.6,0.07996661]
[1646878713597,0.93912,2664.4,2664.1,0.00441446]
[1646878714391,1.23912,2664.4,2663.5,0.0864787]
[1646878714589,1.23912,2664.4,2663.7,0.07592764]
[1646878714788,1.23912,2664.4,2664.0,0.00441462]
[1646878715392,0.93912,2664.4,2664.0,0.00441462]
[1646878715594,2.87833,2664.6,2663.6,0.08497231]
[1646878715595,1.0,2664.6,2663.6,0.08497231]
[1646878715892,0.3,2664.6,2663.7,1.64902299]
[1646878716197,0.93903,2664.7,2663.7,1.64902299]
[1646878716198,0.93903,2664.7,2663.9,0.0860559]
[1646878716837,0.93903,2664.7,2663.9,0.08164119]
[1646878717035,0.93903,2664.7,2663.6,0.0776043]
[1646878717236,0.93903,2664.7,2664.0,0.00441454]
[1646878717437,1.87835,2664.6,2664.0,0.00441454]
[1646878717841,0.0449314,2664.5,2664.0,0.00441454]
[1646878718040,0.04906567,2664.4,2664.0,0.00441454]
[1646878718238,0.04890976,2664.3,2664.0,0.00441454]
[1646878718745,1.23949,2664.2,2664.0,0.00441454]
[1646878719139,1.0,2664.1,2664.0,0.00441454]
[1646878719344,1.3,2664.1,2663.5,0.00101926]
[1646878719546,1.87889,2664.0,2663.5,0.00101926]
[1646878719743,1.87889,2664.0,2663.4,0.03815426]
[1646878719944,1.92414949,2664.0,2663.5,1.5563928]
[1646878720145,0.93945,2663.9,2663.5,1.5563928]
[1646878720392,0.93945,2663.9,2663.6,5.0563928]
[1646878720594,1.0,2664.0,2663.7,5.13121281]
[1646878720792,1.0,2664.2,2663.7,1.63121281]
[1646878720994,1.0,2664.2,2663.8,1.5563928]
[1646878721195,2.2392,2664.2,2663.8,1.5563928]
[1646878721398,1.2392,2664.2,2663.8,1.5563928]
[1646878723499,1.2392,2664.2,2663.2,3.5981]
[1646878723500,0.04823647,2664.1,2663.2,3.5981]
[1646878723699,0.99413449,2663.9,2663.3,1.55646134]
[1646878724050,0.05675789,2663.8,2663.4,1.55646134]
[1646878724647,0.9395,2663.7,2663.3,0.00397413]
[1646878725642,0.9395,2663.7,2663.2,1.55649305]
[1646878725842,0.9395,2663.7,2663.3,1.55649305]
[1646878726043,0.9395,2663.7,2663.4,1.55649305]
[1646878726244,0.9395,2663.7,2663.5,1.55649305]
[1646878726443,0.9395,2663.7,2663.6,1.55649305]
[1646878726845,0.93951,2663.4,2662.9,0.00096]
[1646878727044,0.93951,2663.4,2663.3,0.00119224]
[1646878727246,0.3,2663.7,2663.3,0.00119224]
[1646878727446,0.05320355,2663.8,2663.3,0.00119224]
[1646878727884,0.93938,2663.7,2663.1,1.55649642]
[1646878728084,0.04806264,2663.6,2663.1,1.55649642]
[1646878728282,0.93938,2663.7,2663.3,0.00119226]
[1646878728283,1.23938,2663.7,2663.3,0.00119226]
[1646878728490,1.23938,2663.7,2663.3,1.55768868]
[1646878728785,2.05148787,2663.9,2663.4,1.55649642]
[1646878728985,2.05148787,2663.9,2663.5,1.55649642]
[1646878728986,2.0,2663.9,2663.5,1.55649642]
[1646878729188,1.0,2663.9,2663.6,1.55649642]
[1646878729384,1.0,2663.9,2663.7,1.55649642]
[1646878729586,1.0,2663.9,2663.2,0.00397428]
[1646878729791,0.9393,2664.0,2663.2,0.00397428]
[1646878729986,0.9393,2664.0,2663.4,0.08076737]
[1646878730185,0.9393,2664.0,2663.5,1.55636135]
[1646878730590,0.9393,2664.0,2663.6,1.55636135]
[1646878730789,0.9393,2664.0,2663.7,1.55636135]
[1646878730989,0.9393,2664.0,2663.3,0.0883062]
[1646878731189,0.05326884,2663.9,2663.4,1.55633435]
[1646878731390,1.93211884,2663.9,2663.4,1.55633435]
[1646878731841,1.93211884,2663.9,2663.4,1.56030841]
[1646878732037,1.87885,2663.9,2663.4,1.56030841]
[1646878732738,1.87885,2663.9,2663.4,1.55633435]
[1646878733137,1.87885,2663.9,2663.4,1.56030841]
[1646878733138,2.17885,2663.9,2663.4,1.56030841]
[1646878733537,2.196943,2663.9,2663.4,1.56030841]
[1646878733739,0.93942,2663.8,2663.4,1.56030841]
[1646878733936,0.93942,2663.8,2663.4,1.55633435]
[1646878734340,0.93942,2663.8,2663.4,1.56030841]
[1646878734542,0.05586536,2663.7,2663.4,1.56030841]
[1646878735137,0.05586536,2663.7,2663.2,1.55633435]
[1646878735589,0.05586536,2663.7,2663.3,0.00397421]
[1646878735789,1.0,2663.7,2663.3,0.00397421]
[1646878735989,0.93948,2663.5,2663.3,0.00397421]
[1646878736392,0.93948,2663.5,2663.1,1.5565535]
[1646878736592,0.93948,2663.5,2662.7,0.00096]
[1646878736593,0.029168,2663.2,2662.7,0.00096]
[1646878736790,0.029168,2663.2,2662.4,1.55777644]
[1646878736995,0.029168,2663.2,2662.4,1.55681644]
[1646878737190,0.93973,2663.0,2662.4,1.55681644]
[1646878737390,0.05580081,2662.9,2662.4,1.55681644]
[1646878737589,0.05580081,2662.9,2662.5,1.55681644]
[1646878737790,0.05580081,2662.9,2662.6,1.55681644]
[1646878738092,0.05580081,2662.9,2662.7,1.55681644]
[1646878738291,0.07956342,2663.2,2662.7,1.55681644]
[1646878738492,0.07956342,2663.2,2662.8,1.55681644]
[1646878738493,0.05039542,2663.2,2662.8,1.55681644]
[1646878738690,0.05039542,2663.2,2662.9,1.55681644]
[1646878739044,0.05039542,2663.2,2663.0,1.55670639]
[1646878739235,0.05039542,2663.2,2662.5,0.06592448]
[1646878739436,0.93963,2663.0,2662.6,1.55668816]
[1646878739834,1.92973542,2663.2,2662.6,1.55668816]
[1646878739835,0.05039542,2663.2,2662.6,1.55668816]
[1646878740036,0.04853207,2663.4,2662.6,1.55668816]
[1646878740440,0.3,2663.4,2662.6,1.55668816]
[1646878740643,0.05167823,2663.3,2662.6,1.55668816]
[1646878740842,0.04706031,2663.6,2662.6,1.55668816]
[1646878741042,0.93955,2663.3,2662.6,1.55668816]
[1646878741443,0.0548224,2663.2,2662.7,1.55668816]
[1646878741744,0.0548224,2663.2,2662.8,1.56026556]
[1646878741943,0.0548224,2663.2,2662.8,0.0035774]
[1646878742442,0.0548224,2663.2,2662.7,1.55668816]
[1646878742641,0.0548224,2663.2,2662.3,1.55764816]
[1646878742889,0.0548224,2663.2,2662.7,0.00263352]
[1646878743200,0.64053371,2663.7,2662.8,1.3144365]
[1646878743201,0.19553371,2663.7,2662.8,1.3144365]
[1646878743397,0.56833924,2663.9,2662.9,2.00074787]
[1646878743591,0.04739261,2664.0,2662.8,0.9393365]
[1646878743592,0.017501,2664.2,2663.1,0.3751]
[1646878743793,0.25073838,2664.3,2663.3,0.9392]
[1646878743989,0.05330326,2664.5,2663.4,1.63343256]
[1646878744197,0.956611,2664.7,2663.5,2.01247953]
[1646878744397,0.017501,2664.7,2663.7,0.07623961]
[1646878744594,0.017501,2664.7,2663.6,0.07242459]
[1646878744799,0.017501,2664.7,2663.7,1.55627587]
[1646878745000,0.017501,2664.7,2663.8,0.06990847]
[1646878745194,0.029168,2664.3,2663.8,0.06990847]
[1646878745396,0.029168,2664.3,2663.8,0.07342555]
[1646878745594,0.029168,2664.3,2663.7,0.91245555]
[1646878745795,0.029168,2664.3,2663.8,1.55625351]
[1646878746834,0.05637621,2664.4,2663.8,1.55625351]
[1646878748035,0.93921,2664.3,2663.5,3.09081967]
[1646878748246,0.93921,2664.3,2663.6,1.55632484]
[1646878748247,0.08821681,2664.2,2663.6,1.55632484]
[1646878748441,0.08821681,2664.2,2663.5,0.93919]
[1646878748841,0.06523981,2664.2,2663.6,1.55636949]
[1646878750049,0.06523981,2664.2,2663.6,1.559667]
[1646878750493,0.93921,2664.3,2663.6,1.63094892]
[1646878750691,3.55530272,2664.2,2663.6,0.00329751]
[1646878750893,1.03162981,2664.1,2663.6,0.00329751]
[1646878751096,1.03162981,2664.1,2663.3,1.55650051]
[1646878751097,0.0646229,2664.0,2663.3,1.55650051]
[1646878751297,0.0646229,2664.0,2663.3,2.92768548]
[1646878751498,0.06274773,2664.2,2663.4,1.55847918]
[1646878751693,0.06274773,2664.2,2663.7,0.00329745]
[1646878752794,0.06274773,2664.2,2663.7,0.00098923]
[1646878753395,0.06274773,2664.2,2663.4,1.55643331]
[1646878753597,0.06274773,2664.2,2663.5,1.55643331]
[1646878753794,0.06274773,2664.2,2663.7,0.00098923]
[1646878754457,0.029168,2663.9,2663.7,0.00098923]
[1646878755254,0.029168,2663.9,2663.7,0.00329745]
[1646878755456,1.00515858,2664.0,2663.7,0.00329745]
[1646878755657,0.06414392,2663.9,2663.7,0.00329745]
[1646878755856,0.017501,2664.1,2663.7,0.00329745]
[1646878755857,1.017501,2664.1,2663.7,0.00329745]
[1646878756057,0.06991392,2664.2,2663.2,1.2038]
[1646878756256,0.06991392,2664.2,2663.3,1.55848856]
[1646878756457,0.06991392,2664.2,2663.6,0.00329757]
[1646878756759,0.85217072,2664.3,2663.6,0.00329757]
[1646878756760,1.61128464,2664.3,2663.6,0.00329757]
[1646878756957,1.539072,2664.3,2663.6,0.00329757]
[1646878757157,0.05910451,2664.2,2663.4,1.00671453]
[1646878757557,0.05910451,2664.2,2663.7,0.00329745]
[1646878758387,0.05910451,2664.2,2663.5,1.55640561]
[1646878758787,0.05910451,2664.2,2663.7,0.94239745]
[1646878758987,0.05910451,2664.2,2663.7,0.00329745]
[1646878759487,0.05910451,2664.2,2663.5,1.55638879]
[1646878759884,0.05910451,2664.2,2663.7,0.00329745]
[1646878760990,0.05910451,2664.2,2663.4,0.06750453]
[1646878760991,0.93925,2664.1,2663.4,0.06750453]
[1646878761190,0.05911219,2664.0,2663.7,0.00329745]
[1646878761635,0.93925,2664.1,2663.7,0.00329745]
[1646878761838,0.04631042,2664.4,2663.7,0.00329745]
[1646878762043,0.05619842,2664.8,2663.6,2.00014088]
[1646878762241,0.05619842,2664.8,2663.4,3.0]
[1646878762242,7.51513211,2665.1,2664.1,0.3751]
[1646878762439,7.51513211,2665.1,2664.3,0.3751]
[1646878762440,0.0027721,2664.7,2664.3,0.3751]
[1646878762641,0.05798875,2665.7,2664.6,3.0]
[1646878762841,0.57106398,2665.9,2664.7,11.89494459]
[1646878763044,0.57106398,2665.9,2664.8,0.08427383]
[1646878763239,4.455931,2666.3,2664.8,0.08427383]
[1646878763240,0.017501,2666.1,2664.8,0.08427383]
[1646878763445,0.04884695,2666.2,2666.0,0.9167896]
[1646878763648,0.029168,2666.1,2666.0,0.9167896]
[1646878763844,0.017501,2667.0,2666.0,0.9167896]
[1646878764040,0.029168,2666.7,2666.1,0.07421147]
[1646878764241,0.05451655,2667.1,2666.8,1.22156158]
[1646878765044,0.05451655,2667.1,2666.1,0.07421147]
[1646878765296,0.026637,2667.0,2666.1,0.07421147]
[1646878765890,0.026637,2667.0,2666.3,0.93917021]
[1646878766093,0.05451655,2667.1,2666.3,0.93917021]
[1646878766290,0.05451655,2667.1,2666.9,1.10479434]
[1646878767293,0.07587662,2667.1,2666.4,0.08108746]
[1646878767793,0.07587662,2667.1,2666.4,0.00346721]
[1646878768197,0.07282555,2667.1,2666.6,1.10982005]
[1646878768392,0.00305107,2666.9,2666.4,0.00346721]
[1646878768594,0.02287607,2666.9,2666.4,0.00346721]
[1646878769240,0.019825,2666.9,2666.4,0.00346721]
[1646878769440,0.93827,2666.8,2666.5,1.09149828]
[1646878769641,0.94132107,2666.8,2666.5,1.09149828]
[1646878770040,0.00305107,2666.8,2666.5,1.09149828]
[1646878770646,0.05451655,2667.1,2666.5,1.09149828]
[1646878770647,0.04585979,2667.0,2666.5,1.09149828]
[1646878770852,0.00305107,2666.8,2666.5,0.35727328]
[1646878771949,0.04585979,2667.0,2666.5,0.35727328]
[1646878772249,0.00305107,2666.8,2666.5,0.35727328]
[1646878772452,0.00305107,2666.8,2666.4,0.00346722]
[1646878772886,0.93821,2666.9,2666.4,0.00346722]
[1646878773187,0.00305108,2666.7,2666.3,0.00346729]
[1646878773392,0.93832,2666.6,2666.3,0.00346729]
[1646878774188,0.93832,2666.6,2665.7,0.90863616]
[1646878774390,0.93832,2666.6,2665.8,0.07743974]
[1646878774594,0.94132947,2666.6,2665.8,0.07743974]
[1646878775393,0.0567387,2666.5,2665.8,0.07743974]
[1646878775597,0.00300947,2666.3,2665.8,0.07743974]
[1646878776640,0.0567387,2666.5,2665.8,0.07743974]
[1646878776840,0.93832,2666.6,2666.1,1.2288952]
[1646878776841,0.00300947,2666.2,2666.1,1.2288952]
[1646878777044,0.00300947,2666.2,2666.1,0.07134965]
[1646878777242,0.00300947,2666.2,2665.5,3.64591855]
[1646878777441,0.00300947,2666.2,2665.6,0.07539037]
[1646878777840,0.017501,2666.6,2665.6,0.07539037]
[1646878778041,0.07107167,2666.8,2665.6,0.07539037]
[1646878778042,0.00304877,2666.0,2665.8,0.93827]
[1646878778244,0.00304877,2666.0,2665.9,1.39221246]
[1646878778844,0.017501,2666.8,2665.9,1.01711246]
[1646878779046,0.0624722,2666.8,2665.9,1.01711246]
[1646878779244,0.00304877,2666.1,2665.9,1.01711246]
[1646878779846,0.00304877,2666.1,2666.0,0.07852354]
[1646878780305,0.017501,2666.8,2666.0,0.07852354]
[1646878780500,0.00304877,2666.1,2665.9,0.94764116]
[1646878781400,0.029168,2666.6,2665.9,0.94764116]
[1646878781596,0.00304877,2666.1,2665.9,1.88586116]
[1646878781796,0.00304877,2666.1,2665.9,0.93822]
[1646878782198,0.00304877,2666.1,2665.7,0.08454069]
[1646878782597,0.07493298,2666.6,2665.7,0.08126579]
[1646878782797,0.04576498,2666.6,2665.9,0.97845264]
[1646878782998,0.04576498,2666.6,2665.7,0.08126579]
[1646878782999,0.00304877,2666.1,2665.7,0.08454069]
[1646878783698,0.05652031,2666.5,2665.7,0.0032749]
[1646878783699,0.05687561,2666.2,2665.7,0.0032749]
[1646878784139,0.00304877,2666.0,2665.6,0.00327502]
[1646878784938,0.05687561,2666.2,2665.9,1.08093629]
[1646878785140,0.017501,2666.3,2665.9,1.08093629]
[1646878785340,0.0584254,2666.6,2665.9,1.08093629]
[1646878785541,0.0584254,2666.6,2665.6,0.07323073]
[1646878785542,0.029168,2666.5,2665.6,0.07323073]
[1646878785743,3.517501,2666.6,2665.5,1.25267515]
[1646878785942,0.07686233,2666.5,2665.5,1.25267515]
[1646878786143,0.07686233,2666.5,2665.6,0.9383]
[1646878786545,0.00304877,2666.2,2666.1,1.22588493]
[1646878786744,0.00304877,2666.2,2665.8,0.00327484]
[1646878786943,0.029168,2665.9,2665.8,0.00327484]
[1646878787144,0.00304877,2666.2,2665.8,0.00327484]
[1646878787145,0.0489679,2666.2,2665.8,0.00327484]
[1646878787342,0.029168,2665.9,2665.8,0.00327484]
[1646878787544,0.017501,2666.1,2665.5,1.2494]
[1646878787823,0.00300947,2666.0,2665.5,1.2494]
[1646878788009,0.05410268,2665.8,2665.5,2.24736632]
[1646878788209,0.05410268,2665.8,2665.5,0.99796632]
[1646878788911,0.00300947,2665.8,2665.5,0.99796632]
[1646878789310,0.00300947,2665.8,2665.6,0.08421909]
[1646878789716,0.017501,2666.7,2665.6,0.38421909]
[1646878789916,0.029168,2666.5,2666.4,1.0214463]
[1646878790716,0.017501,2666.7,2666.4,1.0214463]
[1646878790923,0.5522763,2667.0,2666.4,1.0214463]
[1646878790924,0.0646932,2667.0,2666.4,1.0214463]
[1646878791119,0.0646932,2667.0,2666.9,1.2168658]
[1646878791325,0.017501,2667.0,2666.9,1.2168658]